[Event "2. Itzehoer Schach Open"]
[Site "Itzehoe, Germany"]
[Date "2023.05.01"]
[Round "5.25"]
[White "Oblender, Rudi"]
[Black "Vieito, Luis-Maria"]
[Result "0-1"]
[TimeControl "90 min / 40 Züge + 30 min + 30 Sek pro Zug"]
[WhiteElo "1391"]
[BlackElo "1773"]

1. e4 {[%clk 01:31:00]} e6 {[%clk 01:30:50]} {[%emt 00:00:10]} 2. d4 {[%clk
01:30:53]} {[%emt 00:00:37]} d5 {[%clk 01:31:10]} {[%emt 00:00:10]} 3. exd5
{[%clk 01:31:17]} {[%emt 00:00:05]} exd5 {[%clk 01:31:30]} {[%emt 00:00:10]} 4.
Nf3 {[%clk 01:31:39]} {[%emt 00:00:08]} Nf6 {[%clk 01:31:04]} {[%emt 00:00:55]}
5. Be2 {[%clk 01:25:57]} {[%emt 00:06:14]} Bd6 {[%clk 01:28:41]} {[%emt
00:02:53]} 6. Nc3 {[%clk 01:24:56]} {[%emt 00:01:31]} c6 {[%clk 01:28:58]}
{[%emt 00:00:13]} 7. Bg5 {[%clk 01:24:56]} {[%emt 00:00:30]} h6 {[%clk
01:27:22]} {[%emt 00:02:06]} 8. Bh4 {[%clk 01:25:18]} {[%emt 00:00:07]} Bf5
{[%clk 01:27:33]} {[%emt 00:00:19]} 9. Ne5 {[%clk 01:07:09]} {[%emt 00:18:40]}
Qb6 {[%clk 01:21:27]} {[%emt 00:06:36]} 10. Rb1 {[%clk 00:49:14]} {[%emt
00:18:24]} Nbd7 {[%clk 01:17:43]} {[%emt 00:04:15]} 11. Nxd7 {[%clk 00:47:00]}
{[%emt 00:02:44]} Kxd7 {[%clk 01:14:10]} {[%emt 00:04:02]} 12. O-O {[%clk
00:27:56]} {[%emt 00:19:34]} Qc7 {[%clk 01:10:42]} {[%emt 00:03:58]} 13. Bg3
{[%clk 00:27:59]} {[%emt 00:00:28]} h5 {[%clk 01:06:43]} {[%emt 00:04:27]} 14.
Bd3 {[%clk 00:27:04]} {[%emt 00:01:27]} Be6 {[%clk 01:05:38]} {[%emt 00:01:35]}
15. Bxd6 {[%clk 00:25:59]} {[%emt 00:01:35]} Qxd6 {[%clk 01:06:06]} {[%emt
00:00:01]} 16. h3 {[%clk 00:26:19]} {[%emt 00:00:11]} g5 {[%clk 01:05:10]}
{[%emt 00:01:24]} 17. Qe2 {[%clk 00:21:31]} {[%emt 00:05:20]} Rae8 {[%clk
01:04:13]} {[%emt 00:01:26]} 18. Qe5 {[%clk 00:20:49]} {[%emt 00:01:13]} Qe7
{[%clk 01:00:13]} {[%emt 00:04:29]} 19. Nb5 {[%clk 00:16:27]} {[%emt 00:04:54]}
Rc8 {[%clk 00:54:34]} {[%emt 00:06:07]} 20. Nxa7 {[%clk 00:10:12]} {[%emt
00:06:46]} Ra8 {[%clk 00:54:41]} {[%emt 00:00:22]} 21. Nb5 {[%clk 00:09:29]}
{[%emt 00:01:14]} cxb5 {[%clk 00:55:01]} {[%emt 00:00:10]} 22. Bxb5+ {[%clk
00:09:58]} Kd8 {[%clk 00:53:28]} {[%emt 00:02:03]} 23. Qxg5 {[%clk 00:10:06]}
{[%emt 00:00:22]} Rg8 {[%clk 00:53:39]} {[%emt 00:00:18]} 24. Qh4 {[%clk
00:08:09]} {[%emt 00:02:28]} Ne4 {[%clk 00:49:07]} {[%emt 00:05:02]} 25. Qxe7+
{[%clk 00:03:23]} {[%emt 00:05:16]} Kxe7 {[%clk 00:49:30]} {[%emt 00:00:06]} 26.
Kh1 {[%clk 00:03:50]} {[%emt 00:00:04]} Nd2 {[%clk 00:49:41]} {[%emt 00:00:18]}
27. Rbd1 {[%clk 00:04:02]} {[%emt 00:00:18]} Nxf1 {[%clk 00:49:57]} {[%emt
00:00:14]} 28. Rxf1 {[%clk 00:04:27]} {[%emt 00:00:05]} Rxa2 {[%clk 00:50:17]}
{[%emt 00:00:10]} 29. Bd3 {[%clk 00:04:45]} {[%emt 00:00:12]} Rxb2 {[%clk
00:50:23]} {[%emt 00:00:25]} 30. f4 {[%clk 00:05:03]} {[%emt 00:00:12]} Bd7
{[%clk 00:49:24]} {[%emt 00:01:28]} 31. Re1+ {[%clk 00:05:11]} {[%emt
00:00:23]} Kf6 {[%clk 00:49:51]} {[%emt 00:00:02]} 32. Re5 {[%clk 00:05:13]}
{[%emt 00:00:28]} Bb5 {[%clk 00:49:50]} {[%emt 00:00:31]} 33. Rf5+ {[%clk
00:01:46]} {[%emt 00:03:58]} Ke6 {[%clk 00:50:00]} {[%emt 00:00:18]} 34. Re5+
{[%clk 00:02:07]} {[%emt 00:00:10]} Kd6 {[%clk 00:50:16]} {[%emt 00:00:14]} 35.
Bxb5 {[%clk 00:02:27]} {[%emt 00:00:11]} Rxb5 {[%clk 00:50:44]} {[%emt
00:00:01]} 36. c4 {[%clk 00:02:56]} {[%emt 00:00:01]} Rb1+ {[%clk 00:50:48]}
{[%emt 00:00:27]} 37. Kh2 {[%clk 00:03:25]} dxc4 {[%clk 00:51:01]} {[%emt
00:00:17]} 38. Rxh5 {[%clk 00:03:46]} {[%emt 00:00:07]} Rb2 {[%clk 00:51:05]}
{[%emt 00:00:27]} 39. Rh6+ {[%clk 00:03:50]} {[%emt 00:00:27]} Rg6 {[%clk
00:51:07]} {[%emt 00:00:27]} 40. Rxg6+ {[%clk 00:03:56]} {[%emt 00:00:25]} fxg6
{[%clk 00:51:35]} {[%emt 00:00:01]} 41. f5 {[%clk 00:04:12]} {[%emt 00:00:14]}
gxf5 {[%clk 00:51:45]} {[%emt 00:00:20]} 42. h4 {[%clk 00:04:38]} {[%emt
00:00:04]} c3 {[%clk 00:52:09]} {[%emt 00:00:07]} 43. h5 {[%clk 00:04:59]}
{[%emt 00:00:09]} c2 {[%clk 00:52:31]} {[%emt 00:00:08]} 44. h6 {[%clk
00:05:28]} {[%emt 00:00:01]} c1=Q {[%clk 00:52:51]} {[%emt 00:00:09]} 45. h7
{[%clk 00:05:54]} {[%emt 00:00:05]} Qh6+ {[%clk 00:53:16]} {[%emt 00:00:05]} 46.
Kg1 {[%clk 00:06:21]} {[%emt 00:00:03]} Qe3+ {[%clk 00:52:26]} {[%emt
00:01:20]} 47. Kh1 {[%clk 00:06:42]} {[%emt 00:00:09]} Qe1+ {[%clk 00:52:49]}
{[%emt 00:00:06]} 48. Kh2 {[%clk 00:07:07]} {[%emt 00:00:05]} Qh4+ {[%clk
00:53:16]} {[%emt 00:00:04]} 49. Kg1 {[%clk 00:07:28]} {[%emt 00:00:09]} Rb1#
{[%emt 00:00:12]} 0-1

[Event "2. Itzehoer Schach Open"]
[Site "Itzehoe, Germany"]
[Date "2023.05.01"]
[Round "5.36"]
[White "Schindehuette, Frank"]
[Black "Tran, Hanna Emilie Mai Hoa"]
[Result "1/2-1/2"]
[TimeControl "90 min / 40 Züge + 30 min + 30 Sek pro Zug"]
[WhiteElo "1575"]
[BlackElo "1250"]

1. f4 {[%clk 01:30:57]} {[%emt 00:00:02]} d6 {[%clk 01:30:47]} {[%emt
00:00:13]} 2. c4 {[%clk 01:31:22]} {[%emt 00:00:06]} Nf6 {[%clk 01:30:25]}
{[%emt 00:00:53]} 3. Nc3 {[%clk 01:31:43]} {[%emt 00:00:09]} Nbd7 {[%clk
01:29:47]} {[%emt 00:01:07]} 4. Nf3 {[%clk 01:31:58]} {[%emt 00:00:15]} e5
{[%clk 01:27:45]} {[%emt 00:02:32]} 5. d3 {[%clk 01:31:41]} {[%emt 00:00:47]}
b6 {[%clk 01:26:59]} {[%emt 00:01:16]} 6. e4 {[%clk 01:31:29]} {[%emt
00:00:42]} Bb7 {[%clk 01:27:07]} {[%emt 00:00:23]} 7. Be2 {[%clk 01:31:23]}
{[%emt 00:00:35]} Be7 {[%clk 01:20:46]} {[%emt 00:06:52]} 8. O-O {[%clk
01:31:03]} {[%emt 00:00:50]} O-O {[%clk 01:21:09]} {[%emt 00:00:08]} 9. f5
{[%clk 01:30:45]} {[%emt 00:00:48]} c6 {[%clk 01:18:51]} {[%emt 00:02:48]} 10.
h3 {[%clk 01:28:36]} {[%emt 00:02:38]} d5 {[%clk 01:18:47]} {[%emt 00:00:35]}
11. cxd5 {[%clk 01:26:17]} {[%emt 00:02:50]} cxd5 {[%clk 01:19:04]} {[%emt
00:00:13]} 12. Bg5 {[%clk 01:19:04]} {[%emt 00:07:42]} dxe4 {[%clk 01:16:42]}
{[%emt 00:02:52]} 13. Bxf6 {[%clk 01:15:09]} {[%emt 00:04:25]} exf3 {[%clk
01:14:43]} {[%emt 00:02:30]} 14. Bxe7 {[%clk 01:10:41]} {[%emt 00:04:58]} fxe2
{[%clk 01:12:16]} {[%emt 00:02:57]} 15. Qxe2 {[%clk 01:08:07]} {[%emt
00:03:04]} Qxe7 {[%clk 01:12:33]} {[%emt 00:00:13]} 16. d4 {[%clk 01:07:20]}
{[%emt 00:01:17]} Rfe8 {[%clk 01:10:11]} {[%emt 00:02:52]} 17. Rae1 {[%clk
01:06:30]} {[%emt 00:01:20]} f6 {[%clk 01:09:45]} {[%emt 00:00:56]} 18. Qc4+
{[%clk 01:02:55]} {[%emt 00:04:04]} Qf7 {[%clk 01:06:35]} {[%emt 00:03:40]} 19.
Qxf7+ {[%clk 00:57:40]} {[%emt 00:05:46]} Kxf7 {[%clk 01:06:57]} {[%emt
00:00:09]} 20. Nb5 {[%clk 00:57:22]} {[%emt 00:00:48]} Ba6 {[%clk 01:02:18]}
{[%emt 00:05:09]} 21. Nd6+ {[%clk 00:56:34]} {[%emt 00:01:18]} Kf8 {[%clk
01:02:13]} {[%emt 00:00:35]} 22. Rf3 {[%clk 00:54:17]} {[%emt 00:02:47]} Red8
{[%clk 01:01:17]} {[%emt 00:01:27]} 23. Ra3 {[%clk 00:53:19]} {[%emt 00:01:28]}
Nb8 {[%clk 01:00:36]} {[%emt 00:01:11]} 24. dxe5 {[%clk 00:52:53]} {[%emt
00:00:56]} fxe5 {[%clk 01:00:12]} {[%emt 00:00:53]} 25. Ne4 {[%clk 00:52:52]}
{[%emt 00:00:31]} Bb7 {[%clk 01:00:16]} {[%emt 00:00:26]} 26. Ng5 {[%clk
00:52:49]} {[%emt 00:00:33]} Re8 {[%clk 00:18:01]} {[%emt 00:42:45]} 27. Ne6+
{[%clk 00:50:45]} {[%emt 00:02:34]} Rxe6 {[%clk 00:17:54]} {[%emt 00:00:37]} 28.
fxe6 {[%clk 00:51:09]} {[%emt 00:00:05]} Nc6 {[%clk 00:17:55]} {[%emt
00:00:30]} 29. Rf1+ {[%clk 00:48:53]} {[%emt 00:02:46]} Kg8 {[%clk 00:17:09]}
{[%emt 00:01:16]} 30. Rf7 {[%clk 00:47:52]} {[%emt 00:01:30]} Bc8 {[%clk
00:16:49]} {[%emt 00:00:51]} 31. Rg3 {[%clk 00:41:09]} {[%emt 00:07:12]} Bxe6
{[%clk 00:15:24]} {[%emt 00:01:56]} 32. Rgxg7+ {[%clk 00:40:59]} {[%emt
00:00:40]} Kh8 {[%clk 00:15:47]} {[%emt 00:00:07]} 33. Rxh7+ {[%clk 00:40:58]}
{[%emt 00:00:31]} Kg8 {[%clk 00:16:10]} {[%emt 00:00:07]} 34. Rhg7+ {[%clk
00:38:38]} {[%emt 00:02:17]} 1/2-1/2

[Event "2. Itzehoer Schach Open"]
[Site "Itzehoe, Germany"]
[Date "2023.05.01"]
[Round "5.18"]
[White "Schulze, Tim"]
[Black "Quiring, Nikolai"]
[Result "1-0"]
[TimeControl "90 min / 40 Züge + 30 min + 30 Sek pro Zug"]
[WhiteElo "1663"]
[BlackElo "1880"]

1. e4 {[%clk 00:54:56]} {[%emt 00:36:04]} e6 {[%clk 01:30:54]} {[%emt
00:00:06]} 2. d4 {[%clk 00:55:18]} {[%emt 00:00:07]} d5 {[%clk 01:31:09]}
{[%emt 00:00:16]} 3. Nd2 {[%clk 00:55:46]} {[%emt 00:00:02]} Nf6 {[%clk
01:31:25]} {[%emt 00:00:14]} 4. e5 {[%clk 00:56:14]} {[%emt 00:00:02]} Nfd7
{[%clk 01:31:41]} {[%emt 00:00:14]} 5. c3 {[%clk 00:56:39]} {[%emt 00:00:05]}
c5 {[%clk 01:31:43]} {[%emt 00:00:28]} 6. f4 {[%clk 00:57:05]} {[%emt
00:00:04]} Nc6 {[%clk 01:28:42]} {[%emt 00:03:31]} 7. Ndf3 {[%clk 00:57:27]}
{[%emt 00:00:08]} Qb6 {[%clk 01:26:23]} {[%emt 00:02:49]} 8. a3 {[%clk
00:57:52]} {[%emt 00:00:05]} cxd4 {[%clk 01:26:04]} {[%emt 00:00:49]} 9. cxd4
{[%clk 00:58:20]} {[%emt 00:00:02]} a5 {[%clk 01:25:09]} {[%emt 00:01:24]} 10.
b3 {[%clk 00:58:11]} {[%emt 00:00:40]} f6 {[%clk 01:23:46]} {[%emt 00:01:52]}
11. Bd3 {[%clk 00:58:08]} {[%emt 00:00:34]} Be7 {[%clk 01:22:27]} {[%emt
00:01:48]} 12. Ne2 {[%clk 00:57:39]} {[%emt 00:00:59]} fxe5 {[%clk 01:20:37]}
{[%emt 00:02:20]} 13. fxe5 {[%clk 00:57:17]} {[%emt 00:00:52]} O-O {[%clk
01:20:19]} {[%emt 00:00:48]} 14. Qc2 {[%clk 00:57:31]} {[%emt 00:00:16]} h6
{[%clk 01:14:55]} {[%emt 00:05:54]} 15. Bxh6 {[%clk 00:32:10]} {[%emt
00:25:51]} gxh6 {[%clk 01:05:55]} {[%emt 00:09:30]} 16. Bh7+ {[%clk 00:32:11]}
{[%emt 00:00:28]} Kh8 {[%clk 01:06:04]} {[%emt 00:00:21]} 17. Qg6 {[%clk
00:32:03]} {[%emt 00:00:37]} Ndxe5 {[%clk 00:59:05]} {[%emt 00:07:30]} 18. dxe5
{[%clk 00:17:42]} {[%emt 00:14:52]} Qe3 {[%clk 00:56:29]} {[%emt 00:03:06]} 19.
Rd1 {[%clk 00:11:48]} {[%emt 00:06:24]} Nxe5 {[%clk 00:42:59]} {[%emt
00:13:59]} 20. Nxe5 {[%clk 00:11:56]} {[%emt 00:00:22]} Qxe5 {[%clk 00:34:04]}
{[%emt 00:09:25]} 21. Qxh6 {[%clk 00:10:59]} {[%emt 00:01:28]} Qg7 {[%clk
00:32:32]} {[%emt 00:02:01]} 22. Qxg7+ {[%clk 00:09:06]} {[%emt 00:02:23]} Kxg7
{[%clk 00:32:52]} {[%emt 00:00:10]} 23. Bc2 {[%clk 00:09:17]} {[%emt 00:00:19]}
Bxa3 {[%clk 00:33:05]} {[%emt 00:00:17]} 24. Rd3 {[%clk 00:09:46]} Bb4+ {[%clk
00:32:36]} {[%emt 00:01:00]} 25. Kd1 {[%clk 00:10:01]} {[%emt 00:00:15]} Rf2
{[%clk 00:30:36]} {[%emt 00:02:30]} 26. Rg3+ {[%clk 00:08:55]} {[%emt
00:01:34]} Kf7 {[%clk 00:29:27]} {[%emt 00:01:39]} 27. h4 {[%clk 00:08:56]}
{[%emt 00:00:30]} Bd7 {[%clk 00:29:12]} {[%emt 00:00:45]} 28. h5 {[%clk
00:08:04]} {[%emt 00:01:22]} Bb5 {[%clk 00:28:46]} {[%emt 00:00:56]} 29. Rf3+
{[%clk 00:06:34]} {[%emt 00:02:00]} Rxf3 {[%clk 00:28:34]} {[%emt 00:00:43]} 30.
gxf3 {[%clk 00:07:02]} {[%emt 00:00:02]} Bxe2+ {[%clk 00:22:40]} {[%emt
00:06:23]} 31. Kxe2 {[%clk 00:07:29]} {[%emt 00:00:03]} b5 {[%clk 00:22:32]}
{[%emt 00:00:38]} 32. h6 {[%clk 00:07:45]} {[%emt 00:00:14]} Bc3 {[%clk
00:21:49]} {[%emt 00:01:13]} 33. h7 {[%clk 00:08:03]} {[%emt 00:00:13]} Bh8
{[%clk 00:14:49]} {[%emt 00:07:29]} 34. Rh4 {[%clk 00:07:08]} {[%emt 00:01:24]}
Bf6 {[%clk 00:14:01]} {[%emt 00:01:17]} 35. Rg4 {[%clk 00:07:21]} {[%emt
00:00:18]} Rh8 {[%clk 00:12:24]} {[%emt 00:02:07]} 36. Rg1 {[%clk 00:07:07]}
{[%emt 00:00:44]} Bg7 {[%clk 00:08:42]} {[%emt 00:04:13]} 37. Rg4 {[%clk
00:07:05]} {[%emt 00:00:32]} e5 {[%clk 00:08:11]} {[%emt 00:01:01]} 38. Rh4
{[%clk 00:03:35]} {[%emt 00:03:59]} Kf6 {[%clk 00:04:54]} {[%emt 00:03:47]} 39.
Rh5 {[%clk 00:02:31]} {[%emt 00:01:30]} Rc8 {[%clk 00:03:57]} {[%emt 00:01:31]}
40. Kd2 {[%clk 00:00:43]} {[%emt 00:02:20]} Rh8 {[%clk 00:01:39]} {[%emt
00:02:47]} 41. Rf5+ {[%clk 00:28:54]} {[%emt 00:02:19]} Ke7 {[%clk 00:30:12]}
{[%emt 00:01:57]} 42. Rh5 {[%clk 00:28:31]} {[%emt 00:00:52]} Ra8 {[%clk
00:29:01]} {[%emt 00:01:42]} 43. Rh4 {[%clk 00:28:11]} {[%emt 00:00:48]} Rf8
{[%clk 00:26:21]} {[%emt 00:03:10]} 44. Ke2 {[%clk 00:27:39]} {[%emt 00:01:04]}
Bh8 {[%clk 00:25:15]} {[%emt 00:01:37]} 45. Rg4 {[%clk 00:26:57]} {[%emt
00:01:12]} Kf7 {[%clk 00:23:58]} {[%emt 00:01:46]} 46. Bg6+ {[%clk 00:25:42]}
{[%emt 00:01:44]} Kf6 {[%clk 00:23:44]} {[%emt 00:00:45]} 47. Bc2 {[%clk
00:26:03]} {[%emt 00:00:09]} Bg7 {[%clk 00:18:59]} {[%emt 00:05:15]} 48. Rg6+
{[%clk 00:24:59]} {[%emt 00:01:33]} Kf7 {[%clk 00:18:53]} {[%emt 00:00:36]} 49.
Ra6 {[%clk 00:24:33]} {[%emt 00:00:56]} Rc8 {[%clk 00:17:43]} {[%emt 00:01:39]}
50. Bg6+ {[%clk 00:23:17]} {[%emt 00:01:47]} Ke7 {[%clk 00:17:17]} {[%emt
00:00:55]} 51. Rxa5 {[%clk 00:22:45]} {[%emt 00:01:05]} Rb8 {[%clk 00:15:52]}
{[%emt 00:01:54]} 52. Bd3 {[%clk 00:21:39]} {[%emt 00:01:36]} Kd6 {[%clk
00:13:41]} {[%emt 00:02:40]} 53. Bxb5 {[%clk 00:19:36]} {[%emt 00:02:34]} e4
{[%clk 00:13:21]} {[%emt 00:00:50]} 54. fxe4 {[%clk 00:19:29]} {[%emt
00:00:37]} dxe4 {[%clk 00:12:50]} {[%emt 00:01:01]} 55. Bc4 {[%clk 00:19:38]}
{[%emt 00:00:21]} Bh8 {[%clk 00:09:37]} {[%emt 00:03:42]} 56. Rg5 {[%clk
00:19:39]} {[%emt 00:00:25]} Rf8 {[%clk 00:09:44]} {[%emt 00:00:27]} 57. Rg8
{[%clk 00:19:35]} {[%emt 00:00:33]} Ke7 {[%clk 00:10:03]} {[%emt 00:00:12]} 58.
Ke3 {[%clk 00:19:05]} {[%emt 00:01:00]} Bb2 {[%clk 00:09:55]} {[%emt 00:00:37]}
59. Kxe4 {[%clk 00:19:07]} {[%emt 00:00:28]} Rd8 {[%clk 00:06:01]} {[%emt
00:04:25]} 60. Kf5 {[%clk 00:16:49]} {[%emt 00:02:48]} Rf8+ {[%clk 00:06:08]}
{[%emt 00:00:23]} 61. Ke4 {[%clk 00:14:53]} {[%emt 00:02:26]} Rd8 {[%clk
00:06:23]} {[%emt 00:00:14]} 62. Rg2 {[%clk 00:14:10]} {[%emt 00:01:12]} Bh8
{[%clk 00:05:52]} {[%emt 00:01:03]} 63. Bg8 {[%clk 00:13:58]} {[%emt 00:00:41]}
Rd4+ {[%clk 00:05:18]} {[%emt 00:01:05]} 64. Kf5 {[%clk 00:14:10]} {[%emt
00:00:16]} Rd8 {[%clk 00:05:03]} {[%emt 00:00:46]} 65. Re2+ {[%clk 00:14:27]}
{[%emt 00:00:13]} Kf8 {[%clk 00:05:00]} {[%emt 00:00:33]} 66. Re1 {[%clk
00:14:23]} {[%emt 00:00:34]} Rb8 {[%clk 00:04:45]} {[%emt 00:00:45]} 67. Rb1
{[%clk 00:14:51]} {[%emt 00:00:03]} Bc3 {[%clk 00:03:54]} {[%emt 00:01:20]} 68.
b4 {[%clk 00:14:47]} {[%emt 00:00:35]} Kg7 {[%clk 00:03:52]} {[%emt 00:00:28]}
69. b5 {[%clk 00:15:13]} {[%emt 00:00:07]} Kh8 {[%clk 00:03:58]} {[%emt
00:00:23]} 70. b6 {[%clk 00:15:27]} {[%emt 00:00:17]} Rf8+ {[%clk 00:03:44]}
{[%emt 00:00:44]} 71. Ke6 {[%clk 00:15:36]} {[%emt 00:00:20]} Bd4 {[%clk
00:02:19]} {[%emt 00:01:56]} 72. b7 {[%clk 00:15:57]} {[%emt 00:00:10]} Ba7
{[%clk 00:02:36]} {[%emt 00:00:13]} 73. Ke7 {[%clk 00:15:27]} {[%emt 00:00:59]}
Bc5+ {[%clk 00:02:51]} {[%emt 00:00:15]} 74. Kd7 {[%clk 00:15:51]} {[%emt
00:00:06]} Ba7 {[%clk 00:03:09]} {[%emt 00:00:13]} 75. Ra1 {[%clk 00:14:18]}
{[%emt 00:02:02]} Bb8 {[%clk 00:03:28]} {[%emt 00:00:11]} 76. Ra8 {[%clk
00:14:29]} {[%emt 00:00:20]} Kg7 {[%clk 00:03:21]} {[%emt 00:00:37]} 77. Ra2
{[%clk 00:13:47]} {[%emt 00:01:12]} Rf1 {[%clk 00:01:37]} {[%emt 00:02:13]} 78.
Rg2 {[%clk 00:10:23]} {[%emt 00:03:54]} Kh8 {[%clk 00:02:01]} {[%emt 00:00:06]}
79. Rg5 {[%clk 00:09:31]} {[%emt 00:01:18]} Rf2 {[%clk 00:02:11]} {[%emt
00:00:25]} 80. Rh5 {[%clk 00:09:37]} {[%emt 00:00:23]} Rf4 {[%clk 00:01:49]}
{[%emt 00:00:51]} 81. Bd5 {[%clk 00:08:30]} {[%emt 00:01:37]} Rf2 {[%clk
00:01:11]} {[%emt 00:01:09]} 82. Be4 {[%clk 00:08:34]} {[%emt 00:00:25]} Re2
{[%clk 00:01:12]} {[%emt 00:00:28]} 83. Kc8 {[%clk 00:08:16]} {[%emt 00:00:50]}
1-0

[Event "2. Itzehoer Schach Open"]
[Site "Itzehoe, Germany"]
[Date "2023.05.01"]
[Round "5.20"]
[White "Carsten, Juergen"]
[Black "Stehle, Fabian"]
[Result "1/2-1/2"]
[TimeControl "90 min / 40 Züge + 30 min + 30 Sek pro Zug"]
[WhiteElo "1780"]
[BlackElo "1569"]

1. e4 {[%clk 01:30:27]} {[%emt 00:00:32]} c5 {[%clk 01:30:56]} {[%emt
00:00:04]} 2. c3 {[%clk 01:29:38]} {[%emt 00:01:18]} Nf6 {[%clk 01:31:22]}
{[%emt 00:00:05]} 3. e5 {[%clk 01:27:52]} {[%emt 00:02:16]} Nd5 {[%clk
01:31:47]} {[%emt 00:00:04]} 4. d4 {[%clk 01:27:50]} {[%emt 00:00:34]} cxd4
{[%clk 01:32:03]} {[%emt 00:00:14]} 5. cxd4 {[%clk 01:27:18]} {[%emt 00:01:02]}
d6 {[%clk 01:32:18]} {[%emt 00:00:14]} 6. f4 {[%clk 01:27:15]} {[%emt
00:00:32]} Nc6 {[%clk 01:30:47]} {[%emt 00:02:02]} 7. Nc3 {[%clk 01:26:49]}
{[%emt 00:00:55]} dxe5 {[%clk 01:28:28]} {[%emt 00:02:49]} 8. fxe5 {[%clk
01:26:32]} {[%emt 00:00:47]} Bf5 {[%clk 01:25:27]} {[%emt 00:03:30]} 9. a3
{[%clk 01:26:45]} {[%emt 00:00:18]} e6 {[%clk 01:24:33]} {[%emt 00:01:24]} 10.
Nf3 {[%clk 01:26:17]} {[%emt 00:00:58]} Be7 {[%clk 01:23:13]} {[%emt 00:01:50]}
11. Be2 {[%clk 01:16:19]} {[%emt 00:10:28]} Bh4+ {[%clk 01:15:37]} {[%emt
00:08:05]} 12. g3 {[%clk 01:15:41]} {[%emt 00:01:08]} Be7 {[%clk 01:15:38]}
{[%emt 00:00:29]} 13. O-O {[%clk 01:15:15]} {[%emt 00:00:57]} O-O {[%clk
01:15:06]} {[%emt 00:01:02]} 14. Rf2 {[%clk 01:08:38]} {[%emt 00:07:07]} Qd7
{[%clk 01:05:11]} {[%emt 00:10:25]} 15. Bd3 {[%clk 01:00:16]} {[%emt 00:08:52]}
f6 {[%clk 00:51:42]} {[%emt 00:13:59]} 16. Bxf5 {[%clk 00:50:55]} {[%emt
00:09:51]} exf5 {[%clk 00:51:59]} {[%emt 00:00:13]} 17. Qb3 {[%clk 00:50:45]}
{[%emt 00:00:40]} Rad8 {[%clk 00:50:47]} {[%emt 00:01:42]} 18. Be3 {[%clk
00:40:08]} {[%emt 00:11:06]} Kh8 {[%clk 00:50:01]} {[%emt 00:01:17]} 19. Nxd5
{[%clk 00:38:43]} {[%emt 00:01:55]} Qxd5 {[%clk 00:50:23]} {[%emt 00:00:07]} 20.
Qc3 {[%clk 00:34:48]} {[%emt 00:04:25]} fxe5 {[%clk 00:49:11]} {[%emt
00:01:42]} 21. dxe5 {[%clk 00:34:20]} {[%emt 00:00:58]} Qe4 {[%clk 00:42:54]}
{[%emt 00:06:48]} 22. Ng5 {[%clk 00:27:49]} {[%emt 00:07:02]} Bxg5 {[%clk
00:38:53]} {[%emt 00:04:29]} 23. Bxg5 {[%clk 00:26:14]} {[%emt 00:02:06]} Rd3
{[%clk 00:35:01]} {[%emt 00:04:22]} 24. Qc5 {[%clk 00:25:13]} {[%emt 00:01:31]}
Re8 {[%clk 00:34:41]} {[%emt 00:00:49]} 25. Bf4 {[%clk 00:18:28]} {[%emt
00:07:15]} Rd5 {[%clk 00:31:04]} {[%emt 00:04:07]} 26. Qc3 {[%clk 00:17:28]}
{[%emt 00:01:30]} Nxe5 {[%clk 00:26:16]} {[%emt 00:05:19]} 27. Bxe5 {[%clk
00:11:11]} {[%emt 00:06:46]} Rdxe5 {[%clk 00:25:21]} {[%emt 00:01:26]} 28. Raf1
{[%clk 00:11:00]} {[%emt 00:00:41]} h6 {[%clk 00:22:44]} {[%emt 00:03:07]} 29.
Rf3 {[%clk 00:09:46]} {[%emt 00:01:44]} Qg4 {[%clk 00:20:09]} {[%emt 00:03:05]}
30. Rf4 {[%clk 00:09:17]} {[%emt 00:01:00]} Qh5 {[%clk 00:17:13]} {[%emt
00:03:25]} 31. Rh4 {[%clk 00:08:10]} {[%emt 00:01:37]} Qe2 {[%clk 00:16:38]}
{[%emt 00:01:05]} 32. Rhf4 {[%clk 00:08:14]} {[%emt 00:00:26]} Rd8 {[%clk
00:10:57]} {[%emt 00:06:10]} 33. R4f2 {[%clk 00:07:17]} {[%emt 00:01:28]} Qe3
{[%clk 00:08:30]} {[%emt 00:02:57]} 34. Qxe3 {[%clk 00:05:42]} {[%emt
00:02:05]} Rxe3 {[%clk 00:08:53]} {[%emt 00:00:06]} 35. Rxf5 {[%clk 00:05:53]}
{[%emt 00:00:20]} Rd2 {[%clk 00:08:33]} {[%emt 00:00:49]} 36. R5f2 {[%clk
00:05:59]} {[%emt 00:00:25]} Ree2 {[%clk 00:08:14]} {[%emt 00:00:49]} 37. Rxe2
{[%clk 00:06:00]} {[%emt 00:00:29]} Rxe2 {[%clk 00:08:39]} {[%emt 00:00:05]} 38.
Rf2 {[%clk 00:06:21]} {[%emt 00:00:09]} Re1+ {[%clk 00:07:42]} {[%emt
00:01:25]} 1/2-1/2